[Event "RUS-ch Blitz Women 2018"]
[Site "Sochi"]
[Date "2018.10.07"]
[Round "9"]
[White "Charochkina, Daria"]
[Black "Sukhareva, Evgeniya"]
[Result "0-1"]
[ECO "A65"]
[WhiteElo "2344"]
[BlackElo "2125"]
[Annotator "NA"]
[PlyCount "88"]
[EventDate "2018.10.07"]
[EventType "swiss"]
[EventCountry "RUS"]
[SourceTitle "playchess.com"]
[Source "ChessBase"]
[SourceQuality "1"]
[TimeControl "180+2"]

1. d4 {[%emt 0:00:00]} Nf6 {[%emt 0:00:00]} 2. c4 {[%emt 0:00:00]} e6 {[%emt 0:00:00]} 3. Nc3 {[%emt 0:00:01]} c5 {[%emt 0:00:00]} 4. d5 {[%emt 0:00:02]} exd5 {[%emt 0:00:01]} 5. cxd5 {[%emt 0:00:01]} d6 {[%emt 0:00:00]} 6. e4 {[%emt 0:00:07]} a6 {[%emt 0:00:01]} 7. a4 {[%emt 0:00:00]} g6 {[%emt 0:00:01]} 8. f4 {[%emt 0:00:01]} Bg7 {[%emt 0:00:01]} 9. Nf3 {[%emt 0:00:01]} O-O {[%emt 0:00:01]} 10. Be2 {[%emt 0:00:10]} Re8 {[%emt 0:00:03]} 11. Nd2 {[%emt 0:00:03]} Qe7 {[%emt 0:00:13]} 12. O-O {[%emt 0:00:04]} h5 {[%emt 0:00:02]} 13. h3 {[%emt 0:00:03]} h4 {[%emt 0:00:13]} 14. Bf3 {[%emt 0:00:02]} Nh7 {[%emt 0:00:08]} 15. Nc4 {[%emt 0:00:10]} Nd7 {[%emt 0:00:02]} 16. e5 {[%emt 0:00:26]} dxe5 {[%emt 0:00:05]} 17. d6 {[%emt 0:00:01]} Qd8 {[%emt 0:00:53]} 18. Bd5 {[%emt 0:00:18]} e4 {[%emt 0:00:16]} 19. Nxe4 {[%emt 0:00:13]} Nhf6 {[%emt 0:00:07]} 20. Nxf6+ {[%emt 0:00:10]} Nxf6 {[%emt 0:00:03]} 21. Bf3 {[%emt 0:00:09]} Be6 {[%emt 0:00:03]} 22. Ne5 {[%emt 0:00:06]} Rb8 {[%emt 0:00:07]} 23. Be3 {[%emt 0:00:02]} Nd7 {[%emt 0:00:03]} 24. Nxd7 {[%emt 0:00:14]} Qxd7 {[%emt 0:00:11]} 25. Bxc5 {[%emt 0:00:04]} Bxb2 {[%emt 0:00:01]} 26. Rb1 {[%emt 0:00:03]} Bg7 {[%emt 0:00:03]} 27. Bb6 {[%emt 0:00:09]} Rec8 {[%emt 0:00:05]} 28. Bc7 {[%emt 0:00:02]} Rxc7 {[%emt 0:00:01]} 29. dxc7 {[%emt 0:00:01]} Qxc7 {[%emt 0:00:01]} 30. Qc1 {[%emt 0:00:13]} Qe7 {[%emt 0:00:08]} 31. Kh1 {[%emt 0:00:06]} b5 {[%emt 0:00:02]} 32. Qc6 {[%emt 0:00:11]} b4 {[%emt 0:00:02]} 33. Qxa6 {[%emt 0:00:03]} b3 {[%emt 0:00:02]} 34. Rfd1 {[%emt 0:00:08]} b2 {[%emt 0:00:07]} 35. Re1 {[%emt 0:00:13]} Qf6 {[%emt 0:00:13]} 36. Bg4 {[%emt 0:00:13]} Ba2 {[%emt 0:00:24]} 37. Qa7 {[%emt 0:00:01]} Rd8 {[%emt 0:00:09]} 38. a5 {[%emt 0:00:11]} Bxb1 {[%emt 0:00:02]} 39. Rxb1 {[%emt 0:00:01]} Qxf4 {[%emt 0:00:03]} 40. Qg1 {[%emt 0:00:04]} Qa4 {[%emt 0:00:07]} 41. Qe1 {[%emt 0:00:01]} Re8 {[%emt 0:00:01]} 42. Qd2 {[%emt 0:00:07]} Qa2 {[%emt 0:00:03]} 43. Qc2 {[%emt 0:00:02]} Qxa5 {[%emt 0:00:02]} 44. Bf3 {[%emt 0:00:04]} Re1+ {[%emt 0:00:02]} 0-1

[Event "RUS-ch Blitz Women 2018"]
[Site "Sochi"]
[Date "2018.10.07"]
[Round "9"]
[White "Dordzhieva, Dinara"]
[Black "Lysenko, Margarita"]
[Result "1-0"]
[ECO "A05"]
[WhiteElo "2340"]
[BlackElo "2210"]
[Annotator "NA"]
[PlyCount "67"]
[EventDate "2018.10.07"]
[EventType "swiss"]
[EventCountry "RUS"]
[SourceTitle "playchess.com"]
[Source "ChessBase"]
[SourceQuality "1"]
[TimeControl "180+2"]

1. Nf3 {[%emt 0:00:00]} Nf6 {[%emt 0:00:01]} 2. c4 {[%emt 0:00:00]} g6 {[%emt 0:00:04]} 3. g3 {[%emt 0:00:01]} Bg7 {[%emt 0:00:00]} 4. Bg2 {[%emt 0:00:01]} O-O {[%emt 0:00:02]} 5. d4 {[%emt 0:00:01]} c6 {[%emt 0:00:00]} 6. Nc3 {[%emt 0:00:02]} d5 {[%emt 0:00:01]} 7. cxd5 {[%emt 0:00:02]} cxd5 {[%emt 0:00:01]} 8. Ne5 {[%emt 0:00:01]} Nc6 {[%emt 0:01:10]} 9. Nxc6 {[%emt 0:00:02]} bxc6 {[%emt 0:00:00]} 10. O-O {[%emt 0:00:01]} Rb8 {[%emt 0:00:23]} 11. b3 {[%emt 0:00:01]} Nd7 {[%emt 0:00:10]} 12. Ba3 {[%emt 0:00:11]} Re8 {[%emt 0:00:03]} 13. Rc1 {[%emt 0:00:03]} e5 {[%emt 0:00:19]} 14. dxe5 {[%emt 0:00:08]} Nxe5 {[%emt 0:00:03]} 15. Na4 {[%emt 0:00:01]} Qa5 {[%emt 0:00:30]} 16. Bd6 {[%emt 0:00:02]} Rb5 {[%emt 0:00:14]} 17. h3 {[%emt 0:00:57]} Qd8 {[%emt 0:00:20]} 18. Bxe5 {[%emt 0:00:13]} Bxe5 {[%emt 0:00:03]} 19. Rxc6 {[%emt 0:00:01]} Bb7 {[%emt 0:00:02]} 20. Rc5 {[%emt 0:00:08]} Rxc5 {[%emt 0:00:01]} 21. Nxc5 {[%emt 0:00:01]} Ba8 {[%emt 0:00:01]} 22. Nd3 {[%emt 0:00:03]} Bc7 {[%emt 0:00:06]} 23. Qc2 {[%emt 0:00:11]} Bb6 {[%emt 0:00:04]} 24. Bf3 {[%emt 0:00:10]} Qd7 {[%emt 0:00:04]} 25. Bg4 {[%emt 0:00:08]} f5 26. Bf3 Bc6 {[%emt 0:00:05]} 27. Rc1 {[%emt 0:00:03]} Bb5 {[%emt 0:00:01]} 28. Qd2 {[%emt 0:00:02]} Kg7 {[%emt 0:00:03]} 29. Nf4 {[%emt 0:00:02]} d4 {[%emt 0:00:02]} 30. Nd5 {[%emt 0:00:05]} Bd8 {[%emt 0:00:03]} 31. Qxd4+ {[%emt 0:00:02]} Kg8 {[%emt 0:00:01]} 32. a4 {[%emt 0:00:05]} Ba6 {[%emt 0:00:03]} 33. Nf6+ {[%emt 0:00:01]} Bxf6 {[%emt 0:00:02]} 34. Qxd7 {[%emt 0:00:01]} 1-0

[Event "RUS-ch Blitz Women 2018"]
[Site "Sochi"]
[Date "2018.10.07"]
[Round "9"]
[White "Maletina, Tatiana"]
[Black "Sirotkina, Nina"]
[Result "1-0"]
[ECO "A40"]
[WhiteElo "2270"]
[BlackElo "2188"]
[Annotator "NA"]
[PlyCount "69"]
[EventDate "2018.10.07"]
[EventType "swiss"]
[EventCountry "RUS"]
[SourceTitle "playchess.com"]
[Source "ChessBase"]
[SourceQuality "1"]
[TimeControl "180+2"]

1. d4 {[%emt 0:00:00]} Nf6 {[%emt 0:00:00]} 2. c4 {[%emt 0:00:00]} e6 {[%emt 0:00:00]} 3. g3 {[%emt 0:00:01]} Bb4+ {[%emt 0:00:06]} 4. Bd2 {[%emt 0:00:02]} Qe7 {[%emt 0:00:01]} 5. Bg2 {[%emt 0:00:01]} Nc6 {[%emt 0:00:07]} 6. Nf3 {[%emt 0:00:02]} O-O {[%emt 0:00:07]} 7. O-O {[%emt 0:00:02]} Bxd2 {[%emt 0:00:05]} 8. Nbxd2 {[%emt 0:00:04]} d6 {[%emt 0:00:01]} 9. e4 {[%emt 0:00:02]} e5 {[%emt 0:00:01]} 10. d5 {[%emt 0:00:06]} Nd8 {[%emt 0:00:03]} 11. b4 {[%emt 0:00:07]} b6 {[%emt 0:00:02]} 12. Ne1 {[%emt 0:00:12]} a5 {[%emt 0:00:10]} 13. a3 {[%emt 0:00:01]} Ne8 {[%emt 0:00:05]} 14. Nd3 {[%emt 0:00:02]} f5 {[%emt 0:00:13]} 15. Qe2 {[%emt 0:00:30]} Nf6 {[%emt 0:00:04]} 16. f3 {[%emt 0:00:06]} fxe4 {[%emt 0:00:17]} 17. Nxe4 {[%emt 0:00:02]} Ba6 {[%emt 0:00:07]} 18. Rac1 {[%emt 0:00:04]} Nf7 {[%emt 0:00:09]} 19. Kh1 {[%emt 0:00:02]} axb4 {[%emt 0:00:13]} 20. axb4 {[%emt 0:00:05]} Bb7 {[%emt 0:00:00]} 21. Ndf2 {[%emt 0:00:18]} Nh6 {[%emt 0:00:12]} 22. Nxf6+ {[%emt 0:00:05]} Qxf6 {[%emt 0:00:01]} 23. Ne4 {[%emt 0:00:02]} Qe7 {[%emt 0:00:01]} 24. Bh3 {[%emt 0:00:03]} Bc8 {[%emt 0:00:11]} 25. Qg2 {[%emt 0:00:02]} Nf5 {[%emt 0:00:09]} 26. Bxf5 {[%emt 0:00:01]} Bxf5 {[%emt 0:00:01]} 27. Ra1 {[%emt 0:00:06]} Bxe4 {[%emt 0:00:07]} 28. Rxa8 {[%emt 0:00:09]} Rxa8 {[%emt 0:00:02]} 29. fxe4 {[%emt 0:00:01]} h6 {[%emt 0:00:09]} 30. Qh3 {[%emt 0:00:10]} Rf8 {[%emt 0:00:10]} 31. Rxf8+ {[%emt 0:00:04]} Qxf8 {[%emt 0:00:04]} 32. Kg2 {[%emt 0:00:05]} Qe7 {[%emt 0:00:08]} 33. Qc8+ {[%emt 0:00:05]} Kh7 {[%emt 0:00:03]} 34. h4 {[%emt 0:00:01]} Kg6 {[%emt 0:00:11]} 35. Qf5# {[%emt 0:00:02]} 1-0

[Event "RUS-ch Blitz Women 2018"]
[Site "Sochi"]
[Date "2018.10.07"]
[Round "9"]
[White "Borisova, Ekaterina"]
[Black "Vasilevich, Irina"]
[Result "1-0"]
[ECO "A40"]
[WhiteElo "2256"]
[BlackElo "2160"]
[Annotator "NA"]
[PlyCount "67"]
[EventDate "2018.10.07"]
[EventType "swiss"]
[EventCountry "RUS"]
[SourceTitle "playchess.com"]
[Source "ChessBase"]
[SourceQuality "1"]
[TimeControl "180+2"]

1. d4 {[%emt 0:00:00]} e6 {[%emt 0:00:00]} 2. g3 {[%emt 0:00:01]} c5 {[%emt 0:00:04]} 3. c4 {[%emt 0:00:08]} cxd4 {[%emt 0:00:02]} 4. Qxd4 {[%emt 0:00:01]} Nc6 {[%emt 0:00:03]} 5. Qf4 {[%emt 0:00:03]} b6 {[%emt 0:00:11]} 6. Bg2 {[%emt 0:00:01]} Bb7 {[%emt 0:00:00]} 7. Nf3 {[%emt 0:00:29]} Nf6 {[%emt 0:00:04]} 8. Nc3 {[%emt 0:00:05]} Bb4 {[%emt 0:00:33]} 9. O-O {[%emt 0:00:04]} O-O {[%emt 0:00:18]} 10. a3 {[%emt 0:00:01]} Bxc3 {[%emt 0:00:03]} 11. bxc3 {[%emt 0:00:01]} Qb8 {[%emt 0:00:10]} 12. Qg5 {[%emt 0:00:03]} Ne4 {[%emt 0:00:15]} 13. Qh4 {[%emt 0:00:29]} Na5 {[%emt 0:00:12]} 14. Bf4 {[%emt 0:00:08]} Qd8 {[%emt 0:00:03]} 15. Ng5 {[%emt 0:00:16]} Nxg5 {[%emt 0:00:06]} 16. Bxb7 {[%emt 0:00:12]} Nxb7 {[%emt 0:00:02]} 17. Bxg5 {[%emt 0:00:10]} f6 {[%emt 0:00:06]} 18. Be3 {[%emt 0:00:02]} Qc7 {[%emt 0:00:06]} 19. Rfd1 {[%emt 0:00:04]} Rac8 {[%emt 0:00:03]} 20. Rd4 {[%emt 0:00:04]} Nc5 {[%emt 0:00:25]} 21. Rad1 {[%emt 0:00:06]} Rf7 {[%emt 0:00:05]} 22. R4d2 {[%emt 0:00:12]} Nb3 {[%emt 0:00:04]} 23. Rb2 {[%emt 0:00:08]} Na5 {[%emt 0:00:02]} 24. c5 {[%emt 0:00:03]} bxc5 {[%emt 0:00:02]} 25. Rb5 {[%emt 0:00:02]} d6 {[%emt 0:00:07]} 26. Qe4 {[%emt 0:00:09]} Re7 {[%emt 0:00:06]} 27. Rdb1 {[%emt 0:00:05]} f5 {[%emt 0:00:15]} 28. Qa4 {[%emt 0:00:01]} Nc6 {[%emt 0:00:09]} 29. Qa6 {[%emt 0:00:04]} Qd8 {[%emt 0:00:04]} 30. Bg5 {[%emt 0:00:06]} h6 {[%emt 0:00:12]} 31. Bxe7 {[%emt 0:00:02]} Nxe7 {[%emt 0:00:00]} 32. Qxa7 {[%emt 0:00:06]} f4 {[%emt 0:00:02]} 33. Rb7 {[%emt 0:00:02]} Nc6 {[%emt 0:00:02]} 34. Rxg7+ {[%emt 0:00:02]} 1-0

[Event "RUS-ch Blitz Women 2018"]
[Site "Sochi"]
[Date "2018.10.07"]
[Round "9"]
[White "Diakonova, Ekaterina"]
[Black "Guseva, Marina"]
[Result "0-1"]
[ECO "B13"]
[WhiteElo "2236"]
[BlackElo "2292"]
[Annotator "NA"]
[PlyCount "88"]
[EventDate "2018.10.07"]
[EventType "swiss"]
[EventCountry "RUS"]
[SourceTitle "playchess.com"]
[Source "ChessBase"]
[SourceQuality "1"]
[TimeControl "180+2"]

1. e4 {[%emt 0:00:22]} c6 {[%emt 0:00:00]} 2. d4 {[%emt 0:00:01]} d5 {[%emt 0:00:01]} 3. exd5 {[%emt 0:00:01]} cxd5 {[%emt 0:00:01]} 4. Bd3 {[%emt 0:00:01]} Nc6 5. c3 Nf6 {[%emt 0:00:06]} 6. Ne2 {[%emt 0:00:01]} Bg4 {[%emt 0:00:02]} 7. O-O {[%emt 0:00:01]} e6 8. Qe1 Bxe2 {[%emt 0:00:03]} 9. Qxe2 {[%emt 0:00:01]} Qc7 {[%emt 0:00:19]} 10. f4 {[%emt 0:00:07]} Bd6 {[%emt 0:00:04]} 11. Be3 {[%emt 0:00:21]} O-O 12. Nd2 Rfe8 {[%emt 0:00:19]} 13. g4 {[%emt 0:00:17]} a6 {[%emt 0:00:12]} 14. a4 {[%emt 0:00:01]} Rac8 {[%emt 0:00:08]} 15. b4 {[%emt 0:00:12]} Ne7 {[%emt 0:00:13]} 16. Rac1 {[%emt 0:00:02]} Ng6 {[%emt 0:00:04]} 17. g5 {[%emt 0:00:17]} Nd7 {[%emt 0:00:09]} 18. Qh5 {[%emt 0:00:04]} Ndf8 {[%emt 0:00:06]} 19. Bxg6 {[%emt 0:00:07]} Nxg6 {[%emt 0:00:04]} 20. Qg4 {[%emt 0:00:14]} Ne7 {[%emt 0:00:03]} 21. Nb3 {[%emt 0:00:18]} Nf5 {[%emt 0:00:03]} 22. Bd2 {[%emt 0:00:01]} Qc4 {[%emt 0:00:05]} 23. Nc5 {[%emt 0:00:12]} b6 {[%emt 0:00:05]} 24. Nd7 {[%emt 0:00:01]} Qc6 {[%emt 0:00:07]} 25. Ne5 {[%emt 0:00:01]} Qxa4 {[%emt 0:00:21]} 26. Rf3 {[%emt 0:00:13]} Qa2 {[%emt 0:00:05]} 27. Rd3 {[%emt 0:00:01]} a5 {[%emt 0:00:06]} 28. bxa5 {[%emt 0:00:02]} bxa5 {[%emt 0:00:01]} 29. Rf1 {[%emt 0:00:27]} Rb8 {[%emt 0:00:29]} 30. h4 {[%emt 0:00:11]} Rb1 {[%emt 0:00:04]} 31. h5 {[%emt 0:00:03]} Rxf1+ {[%emt 0:00:03]} 32. Kxf1 {[%emt 0:00:00]} Qb1+ {[%emt 0:00:01]} 33. Ke2 {[%emt 0:00:01]} Bxe5 {[%emt 0:00:21]} 34. fxe5 {[%emt 0:00:01]} a4 {[%emt 0:00:03]} 35. g6 {[%emt 0:00:02]} fxg6 {[%emt 0:00:03]} 36. hxg6 {[%emt 0:00:01]} h6 {[%emt 0:00:01]} 37. Rf3 {[%emt 0:00:07]} a3 {[%emt 0:00:04]} 38. Rf1 {[%emt 0:00:00]} Qb5+ {[%emt 0:00:02]} 39. Kf2 {[%emt 0:00:02]} a2 {[%emt 0:00:02]} 40. Qd1 {[%emt 0:00:01]} Ra8 {[%emt 0:00:02]} 41. Qa1 {[%emt 0:00:01]} Qd3 {[%emt 0:00:02]} 42. Rd1 {[%emt 0:00:02]} Qg3+ {[%emt 0:00:01]} 43. Ke2 {[%emt 0:00:02]} Qg2+ {[%emt 0:00:02]} 44. Kd3 {[%emt 0:00:01]} Qe4# {[%emt 0:00:01]} 0-1

[Event "RUS-ch Blitz Women 2018"]
[Site "Sochi"]
[Date "2018.10.07"]
[Round "9"]
[White "Goltseva, Ekaterina"]
[Black "Belenkaya, Dina"]
[Result "0-1"]
[ECO "D26"]
[WhiteElo "2169"]
[BlackElo "2329"]
[Annotator "ChessBase"]
[PlyCount "172"]
[EventDate "2018.10.07"]
[EventType "swiss"]
[EventCountry "RUS"]
[SourceTitle "playchess.com"]
[Source "ChessBase"]
[SourceQuality "1"]
[TimeControl "180+2"]

1. d4 {[%emt 0:00:00]} d5 {[%emt 0:00:00]} 2. c4 {[%emt 0:00:00]} dxc4 {[%emt 0:00:00]} 3. Nf3 {[%emt 0:00:01]} Nf6 {[%emt 0:00:00]} 4. e3 {[%emt 0:00:01]} e6 {[%emt 0:00:01]} 5. Bxc4 {[%emt 0:00:01]} a6 {[%emt 0:00:01]} 6. O-O {[%emt 0:00:02]} c5 {[%emt 0:00:00]} 7. dxc5 {[%emt 0:00:01]} Bxc5 {[%emt 0:00:02]} 8. Qxd8+ {[%emt 0:00:04]} Kxd8 {[%emt 0:00:04]} 9. Nbd2 {[%emt 0:00:02]} Ke7 {[%emt 0:00:04]} 10. Be2 {[%emt 0:00:05]} Bd7 {[%emt 0:00:06]} 11. Nb3 {[%emt 0:00:08]} Bb6 {[%emt 0:00:01]} 12. Bd2 {[%emt 0:00:10]} Nc6 {[%emt 0:00:03]} 13. Rfd1 {[%emt 0:00:02]} Rhd8 {[%emt 0:00:05]} 14. Bc3 {[%emt 0:00:14]} g6 {[%emt 0:00:05]} 15. Nfd4 {[%emt 0:00:06]} Nd5 {[%emt 0:00:13]} 16. Be1 {[%emt 0:00:06]} Ke8 {[%emt 0:00:38]} 17. Bf3 {[%emt 0:00:05]} Nce7 {[%emt 0:00:24]} 18. g3 {[%emt 0:00:02]} Rac8 {[%emt 0:00:16]} 19. e4 {[%emt 0:00:08]} Nf6 {[%emt 0:00:02]} 20. Bc3 {[%emt 0:00:35]} e5 {[%emt 0:00:16]} 21. Nc2 {[%emt 0:00:03]} Nc6 {[%emt 0:00:23]} 22. Ne1 {[%emt 0:00:06]} Be6 {[%emt 0:00:09]} 23. Nd2 {[%emt 0:00:25]} Ng4 {[%emt 0:00:05]} 24. Bxg4 {[%emt 0:00:11]} Bxg4 {[%emt 0:00:01]} 25. Rdc1 {[%emt 0:00:11]} Nd4 {[%emt 0:00:01]} 26. Bxd4 {[%emt 0:00:06]} Bxd4 {[%emt 0:00:02]} 27. Rxc8 {[%emt 0:00:12]} Rxc8 {[%emt 0:00:01]} 28. Rb1 {[%emt 0:00:05]} Be2 {[%emt 0:00:04]} 29. Kg2 {[%emt 0:00:09]} Ke7 {[%emt 0:00:03]} 30. Nb3 {[%emt 0:00:05]} Bb6 {[%emt 0:00:28]} 31. f3 {[%emt 0:00:09]} a5 {[%emt 0:00:01]} 32. Rc1 {[%emt 0:00:04]} Rd8 {[%emt 0:00:05]} 33. Rc2 {[%emt 0:00:08]} Bd1 {[%emt 0:00:03]} 34. Rd2 {[%emt 0:00:10]} Bxb3 {[%emt 0:00:07]} 35. Rxd8 {[%emt 0:00:00]} Bxd8 {[%emt 0:00:03]} 36. axb3 {[%emt 0:00:02]} Kd6 {[%emt 0:00:02]} 37. Nd3 {[%emt 0:00:01]} f5 {[%emt 0:00:02]} 38. Kf2 {[%emt 0:00:04]} Bb6+ {[%emt 0:00:00]} 39. Ke2 {[%emt 0:00:00]} h5 {[%emt 0:00:05]} 40. h3 {[%emt 0:00:04]} Bd4 {[%emt 0:00:07]} 41. Kd2 {[%emt 0:00:04]} Ke6 {[%emt 0:00:04]} 42. Ke2 {[%emt 0:00:02]} b5 {[%emt 0:00:00]} 43. Kd2 {[%emt 0:00:04]} Kd6 {[%emt 0:00:02]} 44. Kc2 {[%emt 0:00:01]} Bg1 {[%emt 0:00:03]} 45. Kc3 {[%emt 0:00:05]} Bh2 {[%emt 0:00:03]} 46. g4 {[%emt 0:00:03]} fxg4 {[%emt 0:00:01]} 47. fxg4 {[%emt 0:00:01]} Bg1 {[%emt 0:00:03]} 48. Kd2 {[%emt 0:00:03]} Bd4 {[%emt 0:00:01]} 49. Kc2 {[%emt 0:00:03]} Ke6 {[%emt 0:00:01]} 50. Ne1 {[%emt 0:00:03]} Kf6 {[%emt 0:00:03]} 51. Nf3 {[%emt 0:00:00]} Be3 {[%emt 0:00:02]} 52. Kd3 {[%emt 0:00:01]} Bc1 {[%emt 0:00:01]} 53. Kc3 {[%emt 0:00:02]} Be3 {[%emt 0:00:02]} 54. Kd3 {[%emt 0:00:02]} Bf4 {[%emt 0:00:01]} 55. Kc3 {[%emt 0:00:02]} Ke6 {[%emt 0:00:04]} 56. Kd3 {[%emt 0:00:01]} Kd6 {[%emt 0:00:04]} 57. Kc3 {[%emt 0:00:01]} Ke6 {[%emt 0:00:02]} 58. Kd3 {[%emt 0:00:01]} Kd6 {[%emt 0:00:03]} 59. Kc3 {[%emt 0:00:00]} Bg3 {[%emt 0:00:00]} 60. Kd3 {[%emt 0:00:01]} Kc5 {[%emt 0:00:01]} 61. Kc3 {[%emt 0:00:07]} Bf4 {[%emt 0:00:03]} 62. Ne1 {[%emt 0:00:03]} Kc6 {[%emt 0:00:03]} 63. Nf3 {[%emt 0:00:02]} Kd6 {[%emt 0:00:01]} 64. Kd3 {[%emt 0:00:01]} Kc5 {[%emt 0:00:01]} 65. Kc3 {[%emt 0:00:02]} Bg3 {[%emt 0:00:02]} 66. Ng5 {[%emt 0:00:06]} Be1+ {[%emt 0:00:02]} 67. Kd3 {[%emt 0:00:02]} Kb4 {[%emt 0:00:01]} 68. Kc2 {[%emt 0:00:00]} a4 {[%emt 0:00:03]} 69. bxa4 {[%emt 0:00:01]} bxa4 {[%emt 0:00:01]} 70. Nf7 {[%emt 0:00:04]} Bg3 {[%emt 0:00:02]} 71. Nh8 {[%emt 0:00:02]} hxg4 {[%emt 0:00:02]} 72. hxg4 {[%emt 0:00:01]} g5 {[%emt 0:00:01]} 73. Nf7 {[%emt 0:00:01]} Bf4 {[%emt 0:00:02]} 74. Nd6 {[%emt 0:00:03]} Kc5 {[%emt 0:00:02]} 75. Nf5 {[%emt 0:00:01]} Kc4 {[%emt 0:00:01]} 76. Ng7 {[%emt 0:00:05]} Kd4 {[%emt 0:00:01]} 77. Ne6+ {[%emt 0:00:02]} Kxe4 {[%emt 0:00:01]} 78. Nc5+ {[%emt 0:00:01]} Kf3 {[%emt 0:00:01]} 79. Nxa4 {[%emt 0:00:01]} Kxg4 {[%emt 0:00:01]} 80. b4 {[%emt 0:00:02]} Kf3 {[%emt 0:00:03]} 81. Nc3 {[%emt 0:00:02]} g4 {[%emt 0:00:03]} 82. Kd3 {[%emt 0:00:02]} g3 {[%emt 0:00:03]} 83. b5 {[%emt 0:00:02]} g2 {[%emt 0:00:02]} 84. Ne2 {[%emt 0:00:01]} Be3 {[%emt 0:00:01]} 85. b6 {[%emt 0:00:05]} Bxb6 {[%emt 0:00:02]} 86. Kd2 {[%emt 0:00:02]} g1=Q {[%emt 0:00:02]} 0-1

[Event "RUS-ch Blitz Women 2018"]
[Site "Sochi"]
[Date "2018.10.07"]
[Round "9"]
[White "Semenova, Elena"]
[Black "Vasilevich, Tatjana"]
[Result "0-1"]
[ECO "B40"]
[WhiteElo "2152"]
[BlackElo "2360"]
[Annotator "NA"]
[PlyCount "86"]
[EventDate "2018.10.07"]
[EventType "swiss"]
[EventCountry "RUS"]
[SourceTitle "playchess.com"]
[Source "ChessBase"]
[SourceQuality "1"]
[TimeControl "180+2"]

1. e4 {[%emt 0:00:00]} c5 {[%emt 0:00:00]} 2. Nf3 e6 3. b3 {[%emt 0:00:02]} b6 {[%emt 0:00:01]} 4. Bb2 {[%emt 0:00:01]} Bb7 {[%emt 0:00:00]} 5. Bd3 {[%emt 0:00:05]} Nf6 {[%emt 0:00:03]} 6. e5 {[%emt 0:00:03]} Nd5 {[%emt 0:00:01]} 7. Be4 {[%emt 0:00:05]} Qc7 {[%emt 0:00:07]} 8. O-O {[%emt 0:00:15]} Be7 {[%emt 0:00:11]} 9. Re1 {[%emt 0:00:04]} O-O {[%emt 0:00:05]} 10. c4 {[%emt 0:00:08]} Nb4 {[%emt 0:00:02]} 11. a3 {[%emt 0:00:17]} Bxe4 {[%emt 0:00:21]} 12. Rxe4 {[%emt 0:00:01]} Nd3 {[%emt 0:00:24]} 13. Bc3 {[%emt 0:00:01]} f5 {[%emt 0:00:01]} 14. Re3 {[%emt 0:00:28]} Nf4 {[%emt 0:00:04]} 15. d4 {[%emt 0:00:11]} cxd4 {[%emt 0:00:16]} 16. Qxd4 {[%emt 0:00:16]} g5 {[%emt 0:00:15]} 17. Qd1 {[%emt 0:00:17]} h6 {[%emt 0:00:22]} 18. Bb4 {[%emt 0:00:15]} Bc5 {[%emt 0:00:25]} 19. Bxc5 {[%emt 0:00:05]} Qxc5 {[%emt 0:00:10]} 20. Nc3 {[%emt 0:00:18]} Nc6 {[%emt 0:00:11]} 21. Qd6 {[%emt 0:00:12]} g4 {[%emt 0:00:12]} 22. Qxc5 {[%emt 0:00:05]} bxc5 {[%emt 0:00:01]} 23. Ree1 {[%emt 0:00:02]} gxf3 {[%emt 0:00:02]} 24. g3 {[%emt 0:00:07]} Nd3 {[%emt 0:00:02]} 25. Red1 {[%emt 0:00:04]} Ndxe5 {[%emt 0:00:02]} 26. Nb5 {[%emt 0:00:04]} a6 {[%emt 0:00:05]} 27. Nd6 {[%emt 0:00:02]} Nd4 {[%emt 0:00:01]} 28. b4 {[%emt 0:00:04]} Ne2+ {[%emt 0:00:04]} 29. Kf1 {[%emt 0:00:02]} cxb4 {[%emt 0:00:06]} 30. axb4 {[%emt 0:00:01]} Rfb8 {[%emt 0:00:02]} 31. b5 {[%emt 0:00:06]} axb5 32. cxb5 {[%emt 0:00:01]} Nc3 {[%emt 0:00:06]} 33. Rxa8 {[%emt 0:00:06]} Rxa8 {[%emt 0:00:01]} 34. Rc1 {[%emt 0:00:01]} Nd5 {[%emt 0:00:03]} 35. Re1 {[%emt 0:00:11]} Ng4 {[%emt 0:00:04]} 36. h3 {[%emt 0:00:04]} Ngf6 {[%emt 0:00:01]} 37. Rb1 {[%emt 0:00:02]} Rb8 {[%emt 0:00:01]} 38. Ke1 {[%emt 0:00:04]} Kf8 {[%emt 0:00:02]} 39. Kd2 Ke7 {[%emt 0:00:01]} 40. Nc4 {[%emt 0:00:03]} Ne4+ {[%emt 0:00:03]} 41. Kd3 {[%emt 0:00:02]} Nd6 {[%emt 0:00:02]} 42. b6 {[%emt 0:00:02]} Nxc4 {[%emt 0:00:02]} 43. Kxc4 {[%emt 0:00:01]} Rxb6 {[%emt 0:00:00]} 0-1